fUST/lending_fUST_20250226
["ID","MTS","AMOUNT","RATE_DAILY","PERIOD"]
[354459343,1740519061716,-500.0,0.00049589,120]
[354459344,1740519061726,-500.0,0.00049589,120]
[354459345,1740519061735,-500.0,0.00049589,120]
[354459346,1740519061745,-500.0,0.00049589,120]
[354459347,1740519061754,-500.0,0.00049589,120]
[354459348,1740519061763,-500.0,0.00049589,120]
[354459349,1740519061773,-500.0,0.00049589,120]
[354459350,1740519061782,-500.0,0.00049589,120]
[354459351,1740519061791,-582.16823479,0.00049589,120]
[354459352,1740519061801,-500.0,0.00049589,120]
[354459353,1740519061810,-500.0,0.00049589,120]
[354459354,1740519061819,-500.0,0.00049589,120]
[354459355,1740519061829,-500.0,0.00049589,120]
[354459356,1740519061839,-500.0,0.00049589,120]
[354459357,1740519061849,-500.0,0.00049589,120]
[354459358,1740519061859,-466.74462672,0.00049589,120]
[354459359,1740519061868,-500.0,0.00049589,120]
[354459360,1740519061877,-500.0,0.00049589,120]
[354459361,1740519061887,-500.0,0.00049589,120]
[354459362,1740519061897,-500.0,0.00049589,120]
[354459363,1740519061906,-502.65855449,0.00049589,120]
[354459364,1740519061917,-500.0,0.00049589,120]
[354459365,1740519061926,-500.0,0.00049589,120]
[354459366,1740519061935,-502.34648155,0.00049589,120]
[354459367,1740519061944,-500.0,0.00049589,120]
[354459368,1740519061953,-500.0,0.00049589,120]
[354459369,1740519061963,-500.0,0.00049589,120]
[354459370,1740519061972,-500.0,0.00049589,120]
[354459371,1740519061981,-500.0,0.00049589,120]
[354459372,1740519061990,-1778.47,0.00049589,120]
[354459373,1740519062000,-500.0,0.00049589,120]
[354459374,1740519062010,-255.89405891,0.00049589,120]
[354459375,1740519062020,-500.0,0.00049589,120]
[354459376,1740519062030,-500.0,0.00049589,120]
[354459377,1740519062039,-500.0,0.00049589,120]
[354459378,1740519062049,-500.0,0.00049589,120]
[354459379,1740519062059,-500.0,0.00049589,120]
[354459380,1740519062068,-500.0,0.00049589,120]
[354459381,1740519062077,-559.2895093,0.00049589,120]
[354459382,1740519062087,-500.0,0.00049589,120]
[354459383,1740519062096,-500.0,0.00049589,120]
[354459384,1740519062105,-524.29,0.00049589,120]
[354459385,1740519062115,-500.0,0.00049589,120]
[354459386,1740519062123,-508.46619385,0.00049589,120]
[354459387,1740519062133,-500.0,0.00049589,120]
[354459388,1740519062142,-500.0,0.00049589,120]
[354459389,1740519062152,-500.0,0.00049589,120]
[354459390,1740519062161,-500.0,0.00049589,120]
[354459391,1740519062171,-500.0,0.00049589,120]
[354459392,1740519062181,-500.0,0.00049589,120]
[354459393,1740519062191,-500.0,0.00049589,120]
[354459394,1740519062200,-506.23818798,0.00049589,120]
[354459395,1740519062209,-501.48426829,0.00049589,120]
[354459396,1740519062218,-500.0,0.00049589,120]
[354459397,1740519062228,-500.0,0.00049589,120]
[354459398,1740519062237,-500.0,0.00049589,120]
[354459399,1740519062247,-803.68,0.00049589,120]
[354459400,1740519062256,-500.70415903,0.00049589,120]
[354459401,1740519062266,-500.0,0.00049589,120]
[354459402,1740519062275,-2827.55,0.00049589,120]
[354459403,1740519062285,-158.88548038,0.00049589,120]
[354459404,1740519062294,-500.0,0.00049589,120]
[354459405,1740519062303,-500.0,0.00049589,120]
[354459406,1740519062313,-500.0,0.00049589,120]
[354459407,1740519062323,-500.0,0.00049589,120]
[354459408,1740519062333,-1286.1,0.00049589,120]
[354459409,1740519062342,-500.0,0.00049589,120]
[354459410,1740519062352,-500.0,0.00049589,120]
[354459411,1740519062362,-500.0,0.00049589,120]
[354459412,1740519062372,-500.0,0.00049589,30]
[354459413,1740519062381,-532.52365038,0.00049589,120]
[354459414,1740519062390,-500.0,0.00049589,120]
[354459415,1740519062400,-500.0,0.00049589,120]
[354459416,1740519062410,-500.0,0.00049589,120]
[354459417,1740519062421,-500.0,0.00049589,120]
[354459418,1740519062431,-500.0,0.00049589,120]
[354459419,1740519062441,-500.0,0.00049589,120]
[354459420,1740519062450,-764.69,0.00049589,120]
[354459421,1740519062460,-500.0,0.00049589,120]
[354459422,1740519062470,-502.43762888,0.00049589,30]
[354459423,1740519062480,-500.0,0.00049589,120]
[354459424,1740519062490,-500.0,0.00049589,120]
[354459425,1740519062501,-500.0,0.00049589,120]
[354459426,1740519062511,-2002.03,0.00049589,120]
[354459427,1740519062521,-500.0,0.00049589,120]
[354459428,1740519062531,-500.0,0.00049589,120]
[354459429,1740519062542,-500.0,0.00049589,120]
[354459430,1740519062552,-500.0,0.00049589,120]
[354459431,1740519062563,-500.0,0.00049589,120]
[354459432,1740519062573,-500.0,0.00049589,120]
[354459433,1740519062582,-2874.66,0.00049589,120]
[354459434,1740519062591,-500.0,0.00049589,120]
[354459435,1740519062601,-500.0,0.00049589,120]
[354459436,1740519062611,-1539.84,0.00049589,120]
[354459437,1740519062624,-453.0504353,0.00049589,120]
[354459438,1740519062633,-500.0,0.00049589,120]
[354459439,1740519062643,-500.0,0.00049589,120]
[354459440,1740519062652,-500.0,0.00049589,120]
[354459441,1740519062662,-1372.6,0.00049589,120]
[354459442,1740519062677,-500.0,0.00049589,120]
[354459443,1740519062687,-500.0,0.00049589,120]
[354459444,1740519062699,-500.0,0.00049589,120]
[354459445,1740519062709,-500.0,0.00049589,120]
[354459446,1740519062719,-500.0,0.00049589,120]
[354459447,1740519062729,-500.0,0.00049589,120]
[354459448,1740519062739,-2167.36,0.00049589,120]
[354459449,1740519062748,-500.0,0.00049589,120]
[354459450,1740519062758,-500.0,0.00049589,120]
[354459451,1740519062767,-500.0,0.00049589,120]
[354459452,1740519062777,-500.0,0.00049589,120]
[354459453,1740519062786,-1031.41,0.00049589,120]
[354459454,1740519062795,-1128.56,0.00049589,120]
[354459455,1740519062804,-500.0,0.00049589,120]
[354459456,1740519062814,-847.51,0.00049589,120]
[354459457,1740519062823,-500.0,0.00049589,120]
[354459458,1740519062833,-1010.46,0.00049589,120]
[354459459,1740519062843,-500.0,0.00049589,120]
[354459460,1740519062853,-3061.97,0.00049589,120]
[354459461,1740519062862,-1465.92,0.00049589,120]
[354459462,1740519062871,-500.0,0.00049589,120]
[354459463,1740519062881,-500.0,0.00049589,120]
[354459464,1740519062890,-500.0,0.00049589,120]
[354459465,1740519063030,-500.0,0.00049589,120]
[354459466,1740519063041,-4164.0,0.00049589,120]
[354459467,1740519063051,-500.0,0.00049589,120]
[354459468,1740519063061,-500.0,0.00049589,120]
[354459469,1740519063071,-500.0,0.00049589,120]
[354459470,1740519063082,-500.0,0.00049589,120]
[354459471,1740519063092,-500.0,0.00049589,120]
[354459472,1740519063101,-500.0,0.00049589,120]
[354459473,1740519063111,-500.0,0.00049589,120]
[354459474,1740519063122,-825.18,0.00049589,120]
[354459475,1740519063132,-500.0,0.00049589,120]
[354459476,1740519063142,-500.0,0.00049589,120]
[354459477,1740519063152,-500.0,0.00049589,120]
[354459478,1740519063162,-500.0,0.00049589,120]
[354459479,1740519063176,-500.0,0.00049589,120]
[354459480,1740519063187,-500.0,0.00049589,120]
[354459481,1740519063197,-500.0,0.00049589,120]
[354459482,1740519063208,-500.0,0.00049589,120]
[354459483,1740519063218,-652.14,0.00049589,120]
[354459484,1740519063228,-2548.62,0.00049589,120]
[354459485,1740519063238,-586.40624455,0.00049589,120]
[354459486,1740519063249,-500.0,0.00049589,120]
[354459487,1740519063259,-500.0,0.00049589,120]
[354459488,1740519063270,-500.0,0.00049589,120]
[354459489,1740519063280,-552.6,0.00049589,120]
[354459490,1740519063290,-500.0,0.00049589,120]
[354459491,1740519063300,-500.0,0.00049589,120]
[354459492,1740519063309,-500.0,0.00049589,120]
[354459493,1740519063320,-1272.0,0.00049589,120]
[354459494,1740519063331,-500.0,0.00049589,120]
[354459495,1740519063340,-500.0,0.00049589,28]
[354459496,1740519063351,-500.0,0.00049589,120]
[354459497,1740519063360,-501.20241898,0.00049589,120]
[354459498,1740519063371,-2086.99,0.00049589,120]
[354459499,1740519063380,-338.14490624,0.00049589,120]
[354459500,1740519063390,-500.0,0.00049589,120]
[354459501,1740519063400,-500.0,0.00049589,120]
[354459502,1740519063410,-500.0,0.00049589,120]
[354459503,1740519063421,-500.0,0.00049589,120]
[354459504,1740519063431,-1922.37,0.00049589,120]
[354459505,1740519063441,-500.0,0.00049589,120]
[354459506,1740519063451,-901.29,0.00049589,120]
[354459507,1740519063461,-500.0,0.00049589,120]
[354459508,1740519063471,-575.98,0.00049589,120]
[354459509,1740519063481,-652.73,0.00049589,120]
[354459510,1740519063491,-500.0,0.00049589,120]
[354459511,1740519063502,-500.0,0.00049589,120]
[354459512,1740519063512,-500.0,0.00049589,120]
[354459513,1740519063521,-500.0,0.00049589,120]
[354459514,1740519063531,-500.0,0.00049589,120]
[354459515,1740519063540,-1328.81,0.00049589,120]
[354459516,1740519063550,-500.0,0.00049589,120]
[354459517,1740519063559,-500.0,0.00049589,120]
[354459518,1740519063569,-1309.55,0.00049589,120]
[354459519,1740519063578,-1000.0,0.00049589,120]
[354459520,1740519063587,-500.0,0.00049589,120]
[354459521,1740519063596,-500.0,0.00049589,120]
[354459522,1740519063606,-805.37,0.00049589,45]
[354459523,1740519063620,-500.0,0.00049589,120]
[354459524,1740519063630,-500.0,0.00049589,120]
[354459525,1740519063639,-500.0,0.00049589,120]
[354459526,1740519063648,-500.0,0.00049589,120]
[354459527,1740519063659,-500.0,0.00049589,120]
[354459528,1740519063670,-500.0,0.00049589,120]
[354459529,1740519063680,-155.62256444,0.00049589,120]
[354459530,1740519063689,-1110.68,0.00049589,120]
[354459531,1740519063699,-500.0,0.00049589,120]
[354459532,1740519063709,-500.0,0.00049589,120]
[354459533,1740519063718,-500.0,0.00049589,120]
[354459534,1740519063728,-663.85,0.00049589,120]
[354459535,1740519063737,-500.0,0.00049589,120]
[354459536,1740519063746,-500.0,0.00049589,120]
[354459537,1740519063756,-500.0,0.00049589,120]
[354459538,1740519063765,-500.0,0.00049589,120]
[354459539,1740519063774,-500.0,0.00049589,120]
[354459540,1740519063784,-501.8398331,0.00049589,120]
[354459541,1740519063793,-500.0,0.00049589,120]
[354459542,1740519063803,-500.0,0.00049589,120]
[354459543,1740519063812,-500.0,0.00049589,120]
[354459544,1740519063822,-524.42613745,0.00049589,120]
[354459545,1740519063831,-1041.62,0.00049589,120]
[354459546,1740519063841,-500.0,0.00049589,120]
[354459547,1740519063852,-500.0,0.00049589,120]
[354459548,1740519063862,-2860.45,0.00049589,120]
[354459549,1740519063872,-500.0,0.00049589,120]
[354459550,1740519063881,-500.0,0.00049589,120]
[354459551,1740519063891,-1053.83,0.00049589,120]
[354459552,1740519063901,-3100.63,0.00049589,120]
[354459553,1740519063910,-500.0,0.00049589,120]
[354459554,1740519063921,-949.71,0.00049589,120]
[354459555,1740519063930,-510.1733964,0.00049589,120]
[354459556,1740519063939,-500.0,0.00049589,120]
[354459557,1740519063948,-500.0,0.00049589,120]
[354459558,1740519063958,-500.0,0.00049589,120]
[354459559,1740519063967,-520.84,0.00049589,120]
[354459560,1740519063976,-500.0,0.00049589,120]
[354459561,1740519063986,-503.19295312,0.00049589,120]
[354459562,1740519063995,-678.83,0.00049589,120]
[354459563,1740519064005,-562.27,0.00049589,120]
[354459564,1740519064014,-500.0,0.00049589,120]
[354459565,1740519064024,-500.0,0.00049589,120]
[354459566,1740519064033,-500.0,0.00049589,120]
[354459567,1740519064042,-500.0,0.00049589,120]
[354459568,1740519064051,-794.87,0.00049589,120]
[354459569,1740519064060,-500.0,0.00049589,120]
[354459570,1740519064070,-500.0,0.00049589,120]
[354459571,1740519064079,-500.0,0.00049589,120]
[354459572,1740519064089,-885.27,0.00049589,120]
[354459573,1740519064098,-789.88,0.00049589,120]
[354459574,1740519064108,-506.20549245,0.00049589,120]
[354459575,1740519064117,-664.89,0.00049589,120]
[354459576,1740519064127,-500.0,0.00049589,120]
[354459577,1740519064137,-2502.34,0.00049589,120]
[354459578,1740519064147,-2491.31,0.00049589,120]
[354459579,1740519064157,-2347.69,0.00049589,120]
[354459580,1740519064167,-815.51,0.00049589,120]
[354459581,1740519064178,-500.0,0.00049589,120]
[354459582,1740519064188,-500.0,0.00049589,120]
[354459583,1740519064198,-500.0,0.00049589,120]
[354459584,1740519064207,-500.0,0.00049589,120]
[354459585,1740519064217,-500.0,0.00049589,120]
[354459586,1740519064227,-500.0,0.00049589,120]
[354459587,1740519064237,-628.59,0.00049589,120]
[354459588,1740519064246,-500.0,0.00049589,120]
[354459589,1740519064256,-5346.16,0.00049589,120]
[354459590,1740519064266,-500.0,0.00049589,120]
[354459591,1740519064276,-2251.12,0.00049589,120]
[354459592,1740519064286,-3000.0,0.00049589,30]
[354459593,1740519064296,-500.0,0.00049589,120]
[354459594,1740519064305,-500.0,0.00049589,120]
[354459595,1740519064315,-1298.15,0.00049589,120]
[354459596,1740519064324,-500.0,0.00049589,120]
[354459597,1740519064334,-500.0,0.00049589,120]
[354459598,1740519064343,-500.0,0.00049589,120]
[354459599,1740519064353,-504.37632929,0.00049589,120]
[354459600,1740519064363,-521.04813937,0.00049589,120]
[354459601,1740519064372,-500.0,0.00049589,120]
[354459602,1740519064382,-500.0,0.00049589,120]
[354459603,1740519064392,-504.0755703,0.00049589,120]
[354459604,1740519064401,-500.0,0.00049589,120]
[354459605,1740519064411,-500.0,0.00049589,120]
[354459606,1740519064420,-500.0,0.00049589,120]
[354459607,1740519064430,-500.0,0.00049589,120]
[354459608,1740519064440,-500.0,0.00049589,120]
[354459609,1740519064450,-500.0,0.00049589,120]
[354459610,1740519064459,-500.0,0.00049589,120]
[354459611,1740519064469,-500.0,0.00049589,120]
[354459612,1740519064478,-500.0,0.00049589,120]
[354459613,1740519064488,-500.0,0.00049589,120]
[354459614,1740519064498,-500.0,0.00049589,120]
[354459615,1740519064507,-914.32,0.00049589,120]
[354459616,1740519064517,-500.0,0.00049589,120]
[354459617,1740519064526,-500.0,0.00049589,120]
[354459618,1740519064535,-733.63,0.00049589,120]
[354459619,1740519064544,-500.0,0.00049589,120]
[354459620,1740519064553,-500.0,0.00049589,120]
[354459621,1740519064563,-500.0,0.00049589,120]
[354459622,1740519064573,-618.09,0.00049589,120]
[354459623,1740519064583,-500.0,0.00049589,120]
[354459624,1740519064592,-503.50743517,0.00049589,120]
[354459625,1740519064602,-500.0,0.00049589,120]
[354459626,1740519064612,-536.13676915,0.00049589,120]
[354459627,1740519064624,-500.0,0.00049589,120]
[354459628,1740519064634,-500.0,0.00049589,120]
[354459629,1740519064644,-500.0,0.00049589,120]
[354459630,1740519064654,-502.88384438,0.00049589,120]
[354459631,1740519064664,-500.0,0.00049589,120]
[354459632,1740519064675,-500.0,0.00049589,120]
[354459633,1740519064685,-500.0,0.00049589,120]
[354459634,1740519064696,-500.0,0.00049589,120]
[354459635,1740519064706,-500.0,0.00049589,120]
[354459636,1740519064715,-1870.42,0.00049589,120]
[354459637,1740519064724,-500.0,0.00049589,120]
[354459638,1740519064733,-500.83507592,0.00049589,120]
[354459639,1740519064743,-500.0,0.00049589,120]
[354459640,1740519064752,-500.0,0.00049589,120]
[354459641,1740519064762,-781.11,0.00049589,120]
[354459642,1740519064771,-500.0,0.00049589,120]
[354459643,1740519064782,-500.0,0.00049589,120]
[354459644,1740519064792,-761.0,0.00049589,120]
[354459645,1740519064802,-500.0,0.00049589,120]
[354459646,1740519064811,-502.50529484,0.00049589,120]
[354459647,1740519064821,-502.43269872,0.00049589,120]
[354459648,1740519064831,-735.47,0.00049589,120]
[354459649,1740519064840,-650.54,0.00049589,120]
[354459650,1740519064849,-504.92864137,0.00049589,120]
[354459651,1740519064859,-500.0,0.00049589,120]
[354459652,1740519064868,-500.0,0.00049589,120]
[354459653,1740519064877,-500.0,0.00049589,120]
[354459654,1740519064887,-500.0,0.00049589,120]
[354459655,1740519064896,-503.89653075,0.00049589,120]
[354459656,1740519064906,-1268.37,0.00049589,120]
[354459657,1740519064915,-500.0,0.00049589,120]
[354459658,1740519064926,-500.0,0.00049589,120]
[354459659,1740519064935,-500.0,0.00049589,120]
[354459660,1740519064944,-1305.23,0.00049589,120]
[354459661,1740519064954,-708.84,0.00049589,120]
[354459662,1740519064963,-6800.06,0.00049589,120]
[354459663,1740519064973,-500.0,0.00049589,120]
[354459664,1740519064982,-500.0,0.00049589,120]
[354459665,1740519064991,-1191.96,0.00049589,120]
[354459666,1740519065000,-500.0,0.00049589,120]
[354459667,1740519065009,-500.0,0.00049589,120]
[354459668,1740519065019,-502.35660959,0.00049589,120]
[354459669,1740519065028,-501.50683753,0.00049589,120]
[354459670,1740519065040,-12312.64,0.00049589,3]
[354459671,1740519065051,-501.25377587,0.00049589,120]
[354459672,1740519065060,-500.0,0.00049589,120]
[354459673,1740519065070,-500.0,0.00049589,120]
[354459674,1740519065079,-500.0,0.00049589,120]
[354459675,1740519065089,-500.0,0.00049589,120]
[354459676,1740519065099,-508.1400747,0.00049589,120]
[354459677,1740519065109,-500.0,0.00049589,120]
[354459678,1740519065119,-1000.0,0.00049589,2]
[354459679,1740519065129,-500.0,0.00049589,120]
[354459680,1740519065139,-500.0,0.00049589,120]
[354459681,1740519065148,-437.97610867,0.00049589,120]
[354459682,1740519065158,-500.0,0.00049589,120]
[354459683,1740519065167,-555.31,0.00049589,120]
[354459684,1740519065177,-500.0,0.00049589,120]
[354459685,1740519065187,-653.71,0.00049589,30]
[354459686,1740519065196,-500.0,0.00049589,120]
[354459687,1740519065205,-1219.1,0.00049589,120]
[354459688,1740519065215,-500.0,0.00049589,120]
[354459689,1740519065224,-500.0,0.00049589,120]
[354459690,1740519065233,-500.0,0.00049589,120]
[354459691,1740519065243,-500.0,0.00049589,120]
[354459692,1740519065252,-500.0,0.00049589,120]
[354459693,1740519065261,-18715.62,0.00049589,120]
[354459694,1740519065271,-500.0,0.00049589,21]
[354459695,1740519065280,-500.0,0.00049589,120]
[354459696,1740519065290,-500.0,0.00049589,120]
[354459697,1740519065299,-1421.63,0.00049589,120]
[354459698,1740519065308,-500.0,0.00049589,120]
[354459699,1740519065318,-500.0,0.00049589,120]
[354459700,1740519065327,-500.0,0.00049589,120]
[354459701,1740519065337,-500.0,0.00049589,120]
[354459702,1740519065346,-501.52140895,0.00049589,120]
[354459703,1740519065477,-708.9,0.00049589,120]
[354459704,1740519065487,-500.0,0.00049589,120]
[354459705,1740519065496,-500.0,0.00049589,120]
[354459706,1740519065505,-500.0,0.00049589,120]
[354459707,1740519065515,-1244.04,0.00049589,120]
[354459708,1740519065524,-505.7337078,0.00049589,120]
[354459709,1740519065533,-9658.64,0.00049589,120]
[354459710,1740519065542,-527.79,0.00049589,120]
[354459711,1740519065552,-500.0,0.00049589,120]
[354459712,1740519065561,-3180.65,0.00049589,120]
[354459713,1740519065570,-2328.51,0.00049589,120]
[354459714,1740519065579,-500.0,0.00049589,120]
[354459715,1740519065589,-500.0,0.00049589,120]
[354459716,1740519065599,-7440.29,0.00049589,120]
[354459717,1740519065609,-500.0,0.00049589,120]
[354459718,1740519065619,-500.0,0.00049589,120]
[354459719,1740519065629,-1349.53,0.00049589,120]
[354459720,1740519065638,-500.0,0.00049589,120]
[354459721,1740519065647,-500.29,0.00049589,120]
[354459722,1740519065657,-500.0,0.00049589,120]
[354459723,1740519065667,-500.0,0.00049589,120]
[354459724,1740519065678,-500.0,0.00049589,120]
[354459725,1740519065687,-500.0,0.00049589,120]
[354459726,1740519065699,-250.0,0.00049589,120]
[354459727,1740519065709,-18480.01,0.00049589,120]
[354459728,1740519065718,-883.27,0.00049589,120]
[354459729,1740519065727,-500.0,0.00049589,120]
[354459730,1740519065736,-501.59619375,0.00049589,120]
[354459731,1740519065745,-500.0,0.00049589,120]
[354459732,1740519065754,-500.0,0.00049589,120]
[354459733,1740519065763,-1537.59,0.00049589,120]
[354459734,1740519065772,-500.0,0.00049589,120]
[354459735,1740519065782,-500.0,0.00049589,120]
[354459736,1740519065791,-3305.81,0.00049589,120]
[354459737,1740519065801,-500.0,0.00049589,120]
[354459738,1740519065810,-500.91253704,0.00049589,120]
[354459739,1740519065819,-1969.95,0.00049589,120]
[354459740,1740519065829,-500.0,0.00049589,120]
[354459741,1740519065838,-501.93107791,0.00049589,120]
[354459742,1740519065848,-500.0,0.00049589,120]
[354459743,1740519065858,-1538.91,0.00049589,120]
[354459744,1740519065867,-500.0,0.00049589,120]
[354459745,1740519065877,-733.07,0.00049589,120]
[354459746,1740519065886,-513.9105948,0.00049589,120]
[354459747,1740519065895,-500.0,0.00049589,120]
[354459748,1740519065905,-2585.71,0.00049589,120]
[354459749,1740519065914,-500.0,0.00049589,120]
[354459750,1740519065925,-500.0,0.00049589,120]
[354459751,1740519065935,-726.95,0.00049589,120]
[354459752,1740519065945,-500.0,0.00049589,120]
[354459753,1740519065954,-500.0,0.00049589,120]
[354459754,1740519065963,-670.86,0.00049589,120]
[354459755,1740519065973,-500.0,0.00049589,120]
[354459756,1740519065983,-500.0,0.00049589,120]
[354459757,1740519065992,-5845.81,0.00049589,120]
[354459758,1740519066002,-590.64,0.00049589,120]
[354459759,1740519066011,-4218.67,0.00049589,120]
[354459760,1740519066021,-1445.64,0.00049589,120]
[354459761,1740519066031,-500.0,0.00049589,120]
[354459762,1740519066040,-500.0,0.00049589,120]
[354459763,1740519066049,-1100.12,0.00049589,20]
[354459764,1740519066059,-500.0,0.00049589,120]
[354459765,1740519066069,-2086.48,0.00049589,120]
[354459766,1740519066079,-283257.38,0.00049589,7]
[354459767,1740519066088,-500.0,0.00049589,120]
[354459768,1740519066097,-20065.51,0.00049589,120]
[354459769,1740519066107,-500.0,0.00049589,120]
[354459770,1740519066116,-660.84,0.00049589,120]
[354459771,1740519066126,-504.25076333,0.00049589,120]
[354459772,1740519066136,-500.0,0.00049589,120]
[354459773,1740519066146,-500.0,0.00049589,120]
[354459774,1740519066156,-2037.3,0.00049589,120]
[354459775,1740519066166,-501.60480305,0.00049589,120]
[354459776,1740519066180,-510.36186202,0.00049589,120]
[354459777,1740519066190,-500.0,0.00049589,120]
[354459778,1740519066200,-500.0,0.00049589,120]
[354459779,1740519066210,-500.0,0.00049589,120]
[354459780,1740519066220,-500.0,0.00049589,120]
[354459781,1740519066230,-505.0353653,0.00049589,120]
[354459782,1740519066239,-500.0,0.00049589,120]
[354459783,1740519066249,-1374.19,0.00049589,120]
[354459784,1740519066260,-502.52,0.00049589,120]
[354459785,1740519066269,-4451.23,0.00049589,120]
[354459786,1740519066279,-500.0,0.00049589,120]
[354459787,1740519066289,-500.0,0.00049589,120]
[354459788,1740519066299,-2896.86,0.00049589,120]
[354459789,1740519066308,-1021.51,0.00049589,120]
[354459790,1740519066318,-1685.87,0.00049589,120]
[354459791,1740519066327,-552.91,0.00049589,120]
[354459792,1740519066337,-502.34656903,0.00049589,120]
[354459793,1740519066347,-565.81,0.00049589,120]
[354459794,1740519066357,-500.0,0.00049589,120]
[354459795,1740519066367,-500.0,0.00049589,120]
[354459796,1740519066377,-500.0,0.00049589,120]
[354459797,1740519066386,-500.0,0.00049589,120]
[354459798,1740519066396,-1928.44,0.00049589,120]
[354459799,1740519066405,-500.0,0.00049589,120]
[354459800,1740519066415,-2767.4,0.00049589,120]
[354459801,1740519066427,-516.30569475,0.00049589,120]
[354459802,1740519066437,-500.0,0.00049589,120]
[354459803,1740519066446,-500.0,0.00049589,120]
[354459804,1740519066456,-500.0,0.00049589,120]
[354459805,1740519066466,-870.42,0.00049589,120]
[354459806,1740519066476,-500.0,0.00049589,120]
[354459807,1740519066486,-2177.76,0.00049589,120]
[354459808,1740519066495,-500.0,0.00049589,120]
[354459809,1740519066505,-500.0,0.00049589,120]
[354459810,1740519066515,-500.0,0.00049589,120]
[354459811,1740519066524,-500.0,0.00049589,120]
[354459812,1740519066534,-500.0,0.00049589,120]
[354459813,1740519066543,-500.0,0.00049589,120]
[354459814,1740519066553,-500.0,0.00049589,120]
[354459815,1740519066564,-500.0,0.00049589,120]
[354459816,1740519066574,-978.57,0.00049589,120]
[354459817,1740519066583,-500.0,0.00049589,120]
[354459818,1740519066593,-500.0,0.00049589,120]
[354459819,1740519066602,-500.0,0.00049589,120]
[354459820,1740519066612,-1818.45,0.00049589,120]
[354459821,1740519066625,-500.0,0.00049589,120]
[354459822,1740519066634,-500.0,0.00049589,120]
[354459823,1740519066643,-500.0,0.00049589,120]
[354459824,1740519066653,-500.0,0.00049589,120]
[354459825,1740519066663,-500.0,0.00049589,120]
[354459826,1740519066673,-500.0,0.00049589,120]
[354459827,1740519066682,-593.79,0.00049589,120]
[354459828,1740519066692,-500.0,0.00049589,30]
[354459829,1740519066701,-500.0,0.00049589,120]
[354459830,1740519066711,-661.6,0.00049589,120]
[354459831,1740519066720,-500.0,0.00049589,120]
[354459832,1740519066729,-500.0,0.00049589,120]
[354459833,1740519066739,-2631.55,0.00049589,120]
[354459834,1740519066748,-3650.16,0.00049589,120]
[354459835,1740519066756,-500.0,0.00049589,120]
[354459836,1740519066766,-500.0,0.00049589,120]
[354459837,1740519066775,-500.0,0.00049589,120]
[354459838,1740519066785,-500.0,0.00049589,30]
[354459839,1740519066795,-500.0,0.00049589,120]
[354459840,1740519066804,-3173.46,0.00049589,120]
[354459841,1740519066813,-883.73,0.00049589,2]
[354459842,1740519066823,-500.0,0.00049589,120]